bitfinex/quotes_ETHUSD_20210401
["timestamp","ask_amount","ask_price","bid_price","bid_amount"]
[1617252026113,5.01,1922.8,1922.6,1.0]
[1617252026315,4.07061076,1922.8,1922.6,1.28]
[1617252027114,11.87381076,1922.8,1922.6,1.28]
[1617252028934,11.87381076,1922.8,1922.6,1.0]
[1617252029333,5.01,1922.7,1922.6,1.0]
[1617252029936,12.8145,1922.7,1922.6,1.0]
[1617252032156,7.8045,1922.7,1922.6,1.0]
[1617252032559,8.91202,1922.9,1922.6,1.41]
[1617252032761,8.91202,1922.9,1922.7,0.38]
[1617252033180,5.01,1922.8,1922.7,0.38]
[1617252033379,4.96,1922.8,1922.7,0.38]
[1617252033579,11.70494,1922.9,1922.7,0.38]
[1617252034179,12.24779494,1922.9,1922.7,0.38]
[1617252034379,7.803,1922.8,1922.7,0.38]
[1617252034779,7.803,1922.8,1922.6,1.28]
[1617252034978,7.803,1922.8,1922.6,1.66]
[1617252035382,7.803,1922.8,1922.6,1.38]
[1617252035580,7.803,1922.8,1922.6,1.0]
[1617252037206,6.803,1922.8,1922.6,1.0]
[1617252037606,8.8840652,1922.8,1922.6,1.0]
[1617252037807,2.0810652,1922.8,1922.6,1.0]
[1617252038207,5.01,1922.7,1922.6,1.0]
[1617252038631,12.81436,1922.7,1922.6,1.0]
[1617252038829,7.80436,1922.7,1922.6,1.0]
[1617252039230,7.80436,1922.7,1922.6,1.39]
[1617252039430,8.07581013,1922.7,1922.6,1.39]
[1617252040230,7.80436,1922.7,1922.6,1.39]
[1617252042065,6.80436,1922.7,1922.6,1.39]
[1617252042466,6.80436,1922.7,1922.6,1.0]
[1617252044702,6.80436,1922.7,1922.6,1.39]
[1617252047104,5.80436,1922.7,1922.6,1.0]
[1617252048305,9.87551224,1922.7,1922.6,1.0]
[1617252052357,8.87551224,1922.7,1922.6,1.0]
[1617252057204,7.87551224,1922.7,1922.6,1.0]
[1617252057402,7.87551224,1922.7,1922.6,1.39]
[1617252058003,3.80436,1922.7,1922.6,1.39]
[1617252058804,3.80436,1922.7,1922.6,1.0]
[1617252061251,9.00436,1922.7,1922.6,1.0]
[1617252061956,3.80436,1922.7,1922.6,1.0]
[1617252062160,8.05436,1922.7,1922.6,1.0]
[1617252063359,2.80436,1922.7,1922.6,1.0]
[1617252064162,9.15436,1922.7,1922.6,1.0]
[1617252065184,14.16436,1922.7,1922.6,1.0]
[1617252067206,13.16436,1922.7,1922.6,1.0]
[1617252069009,13.16436,1922.7,1922.1,1.2762927]
[1617252069010,35.51436,1922.7,1922.1,1.2762927]
[1617252069210,5.01,1922.5,1922.1,1.2762927]
[1617252069414,8.91354,1922.4,1922.1,1.2762927]
[1617252069835,5.01,1922.3,1922.1,1.2762927]
[1617252070035,12.81708,1922.3,1922.1,1.2762927]
[1617252070435,12.76708,1922.3,1922.1,1.2762927]
[1617252070841,17.97223,1922.3,1922.1,1.2762927]
[1617252071039,19.06983,1922.3,1922.1,1.2762927]
[1617252071238,7.80826,1922.2,1922.1,1.2762927]
[1617252072239,6.80826,1922.2,1922.1,1.2762927]
[1617252073661,6.80826,1922.2,1922.1,1.6562927]
[1617252073860,10.88064932,1922.2,1922.1,1.6562927]
[1617252074060,4.07238932,1922.2,1922.1,1.6562927]
[1617252074259,4.96,1922.3,1922.1,1.9362927]
[1617252074460,11.09334501,1922.4,1922.1,1.9362927]
[1617252074461,0.54304501,1922.4,1922.1,1.9362927]
[1617252074664,0.54304501,1922.4,1922.3,0.38]
[1617252074862,0.54304501,1922.4,1922.3,7.7462]
[1617252075086,0.54304501,1922.4,1922.3,8.0262]
[1617252075286,10.40651,1922.7,1922.4,0.42]
[1617252075486,10.40651,1922.7,1922.6,0.38]
[1617252075685,0.81440536,1922.9,1922.6,0.66]
[1617252076293,7.80367,1922.8,1922.6,0.66]
[1617252077289,6.80367,1922.8,1922.2,0.09406894]
[1617252077487,6.80367,1922.8,1922.3,0.38]
[1617252077707,6.94367,1922.8,1922.4,0.476]
[1617252078309,6.94367,1922.8,1922.5,0.41]
[1617252078710,6.94367,1922.8,1922.5,0.634]
[1617252079110,3.90295,1922.7,1922.5,0.634]
[1617252079310,3.90295,1922.7,1922.5,0.224]
[1617252079913,3.90295,1922.7,1922.1,1.2762927]
[1617252080111,7.80588,1922.5,1922.2,0.41]
[1617252080331,7.80588,1922.5,1922.2,0.858]
[1617252082131,6.80588,1922.5,1922.2,0.858]
[1617252082332,6.80588,1922.5,1922.3,0.38]
[1617252082957,6.80588,1922.5,1922.4,0.39]
[1617252083160,0.14,1922.8,1922.4,0.642]
[1617252083359,0.81440536,1922.9,1922.5,0.69]
[1617252084762,5.82440536,1922.9,1922.5,0.69]
[1617252085168,7.80406,1922.7,1922.1,1.37036164]
[1617252085364,7.80406,1922.7,1922.2,0.406]
[1617252085365,7.82506,1922.7,1922.2,0.406]
[1617252085590,7.82506,1922.7,1922.1,1.2762927]
[1617252085591,12.83506,1922.7,1922.1,1.5562927]
[1617252086002,13.031,1922.7,1922.1,1.5562927]
[1617252086201,5.15,1922.5,1922.1,1.5562927]
[1617252086402,7.80588,1922.3,1922.1,1.9562927]
[1617252086608,15.55784,1922.5,1922.1,1.9562927]
[1617252086804,0.14,1922.5,1922.2,0.39]
[1617252087403,12.95506,1922.5,1922.2,0.39]
[1617252087603,7.80506,1922.5,1922.2,0.39]
[1617252090631,7.80506,1922.5,1922.3,0.38]
[1617252090831,7.80506,1922.5,1922.4,0.38]
[1617252091435,7.80506,1922.5,1922.3,0.28]
[1617252093659,8.80506,1922.5,1922.3,0.28]
[1617252094458,8.80506,1922.5,1922.2,0.28]
[1617252095662,8.80506,1922.5,1922.1,1.9462927]
[1617252098290,8.80506,1922.5,1922.1,1.5562927]
[1617252099520,8.80506,1922.5,1922.3,0.69]
[1617252099919,1.0,1922.5,1922.4,0.4]
[1617252100319,0.28954415,1922.7,1922.4,0.106568]
[1617252100518,0.28954415,1922.7,1922.4,0.414568]
[1617252100923,8.09344415,1922.7,1922.4,0.308]
[1617252102138,8.07537272,1922.7,1922.4,0.308]
[1617252102937,8.09345116,1922.7,1922.4,0.308]
[1617252103137,8.09345116,1922.7,1922.1,2.4762927]
[1617252103338,8.09345116,1922.7,1922.3,0.28]
[1617252105383,7.09345116,1922.7,1922.5,0.4]
[1617252105582,7.07537272,1922.7,1922.6,0.4]
[1617252106592,0.01809559,1922.7,1922.6,7.43]
[1617252106791,0.54297929,1922.8,1922.6,7.43]
[1617252106792,0.56108004,1922.8,1922.6,7.43]
[1617252106990,0.56108004,1922.8,1922.6,0.68]
[1617252106991,8.36453004,1922.8,1922.6,0.68]
[1617252107191,8.34642929,1922.8,1922.6,0.68]
[1617252108390,8.34642929,1922.8,1922.6,0.28]
[1617252110213,7.34642929,1922.8,1922.6,0.28]
[1617252110414,7.36452643,1922.8,1922.5,0.28]
[1617252111214,12.37452643,1922.8,1922.3,0.41]
[1617252111417,0.03908822,1922.7,1922.2,0.42]
[1617252111614,0.03908822,1922.7,1922.2,0.83]
[1617252112839,7.8048,1922.5,1922.2,0.83]
[1617252113641,7.8048,1922.5,1922.2,0.32]
[1617252114467,7.8048,1922.5,1922.2,0.71]
[1617252114869,0.01808822,1922.7,1922.4,0.39]
[1617252115070,10.68434668,1923.0,1922.4,1.6837]
[1617252115071,0.01809218,1922.8,1922.4,1.6837]
[1617252115269,9.70243886,1923.0,1922.6,0.39]
[1617252115470,9.70243886,1923.0,1922.8,0.4]
[1617252115879,9.70243886,1923.0,1922.6,0.308]
[1617252116070,9.70243886,1923.0,1922.6,0.698]
[1617252116272,10.24527414,1923.0,1922.6,0.698]
[1617252118113,7.80377,1922.8,1922.6,0.698]
[1617252118914,7.80377,1922.8,1922.6,0.308]
[1617252120313,6.80377,1922.8,1922.6,0.308]
[1617252120915,6.80377,1922.8,1922.5,0.69]
[1617252122944,6.80377,1922.8,1922.5,0.28]
[1617252123545,6.80377,1922.8,1922.2,0.371]
[1617252123746,6.80377,1922.8,1922.2,0.761]
[1617252124346,7.19377,1922.8,1922.2,0.371]
[1617252124550,7.3568805,1922.8,1922.2,0.371]
[1617252125363,6.3568805,1922.8,1922.2,0.371]
[1617252125564,6.89978734,1922.8,1922.2,0.371]
[1617252126967,6.50978734,1922.8,1922.3,0.38]
[1617252127170,6.50978734,1922.8,1922.4,0.4]
[1617252127366,6.50978734,1922.8,1922.4,0.687]
[1617252127991,6.50978734,1922.8,1922.4,0.287]
[1617252129393,6.88978734,1922.8,1922.4,0.287]
[1617252130415,5.50978734,1922.8,1922.4,0.287]
[1617252130837,5.50978734,1922.8,1922.2,0.39]
[1617252131039,10.51978734,1922.8,1922.2,0.67]
[1617252132041,7.80545,1922.4,1922.2,0.67]
[1617252134470,7.80545,1922.4,1922.2,0.28]
[1617252135271,6.80545,1922.4,1922.2,0.28]
[1617252136471,6.80545,1922.4,1922.2,0.69]
[1617252136671,6.80545,1922.4,1922.2,0.28]
[1617252138890,0.27145151,1922.5,1922.2,0.68]
[1617252140091,0.4,1922.4,1922.1,1.2762927]
[1617252140295,10.21872151,1922.6,1922.1,1.2762927]
[1617252140491,8.14336717,1922.5,1922.1,1.2762927]
[1617252141116,7.80649,1922.3,1922.1,1.2762927]
[1617252142516,7.80649,1922.3,1922.2,0.39]
[1617252143339,7.80649,1922.3,1922.1,1.2762927]
[1617252145340,6.80649,1922.3,1922.1,1.2762927]
[1617252147167,15.89689,1922.3,1922.1,1.2762927]
[1617252150420,0.1631402,1922.2,1922.1,1.2762927]
[1617252150622,7.9693702,1922.2,1922.1,1.2762927]
[1617252156870,7.9693702,1922.2,1922.1,1.6762927]
[1617252157069,0.1631402,1922.2,1922.1,1.6762927]
[1617252158868,7.9689402,1922.2,1922.1,1.6762927]
[1617252159695,0.1631402,1922.2,1922.1,1.6762927]
[1617252160894,0.1631402,1922.2,1922.1,1.2762927]
[1617252161495,7.9691602,1922.2,1922.1,1.2762927]
[1617252161717,7.98125259,1922.2,1922.1,1.2762927]
[1617252161918,7.98125259,1922.2,1922.1,1.6562927]
[1617252163119,7.98125259,1922.2,1922.1,1.2762927]
[1617252163319,7.98125259,1922.2,1922.1,1.6862927]
[1617252164563,7.9691602,1922.2,1922.1,1.6862927]
[1617252165164,7.98125671,1922.2,1922.1,1.6862927]
[1617252165364,7.98125671,1922.2,1922.1,1.2762927]
[1617252165964,7.98125671,1922.2,1922.1,17.7025927]
[1617252165965,0.17523671,1922.2,1922.1,17.7025927]
[1617252166165,0.17523671,1922.2,1922.1,20.7025927]
[1617252166366,5.03476457,1922.8,1922.2,15.985]
[1617252166568,0.27145051,1922.8,1922.7,9.5701]
[1617252166766,8.07487051,1922.8,1922.7,9.5701]
[1617252167372,8.07487051,1922.8,1922.7,9.1701]
[1617252167974,13.57487051,1922.8,1922.7,9.1701]
[1617252171398,12.57487051,1922.8,1922.7,9.1701]
[1617252172222,12.57487051,1922.8,1922.6,1.3251]
[1617252172423,5.01,1922.7,1922.3,0.69]
[1617252172623,7.80598,1922.5,1922.3,0.69]
[1617252174430,7.80598,1922.5,1922.4,0.39]
[1617252174627,7.80598,1922.5,1922.4,8.2969]
[1617252174848,10.40797,1922.6,1922.4,8.2969]
[1617252175050,7.80436,1922.6,1922.4,4.88327208]
[1617252175887,14.87798872,1922.9,1922.4,7.88327208]
[1617252175888,14.47798872,1922.9,1922.4,7.88327208]
[1617252176083,7.80381,1922.8,1922.4,7.59627208]
[1617252176284,7.80381,1922.8,1922.5,0.378]
[1617252176481,6.80381,1922.8,1922.5,0.768]
[1617252177493,6.80381,1922.8,1922.5,0.378]
[1617252179793,6.94381,1922.8,1922.5,0.28]
[1617252179995,6.94381,1922.8,1922.3,0.378]
[1617252180195,6.94381,1922.8,1922.4,0.38]
[1617252180997,6.94381,1922.8,1922.4,0.695]
[1617252181196,6.80381,1922.8,1922.4,0.695]
[1617252181394,5.80381,1922.8,1922.4,0.695]
[1617252181595,5.80381,1922.8,1922.6,0.4]
[1617252181998,5.80381,1922.8,1922.6,0.68]
[1617252182396,5.80381,1922.8,1922.6,0.28]
[1617252185847,5.80381,1922.8,1922.6,0.18]
[1617252186451,4.80381,1922.8,1922.6,0.18]
[1617252188475,4.80381,1922.8,1922.3,0.39]
[1617252188673,4.80381,1922.8,1922.3,0.691]
[1617252189074,4.80381,1922.8,1922.3,0.301]
[1617252189673,4.80381,1922.8,1922.3,1.501]
[1617252189875,4.80381,1922.8,1922.5,0.39]
[1617252190475,4.80381,1922.8,1922.3,4.2]
[1617252190700,4.80381,1922.8,1922.4,0.702]
[1617252190903,4.80381,1922.8,1922.4,4.58]
[1617252191099,4.80381,1922.8,1922.4,4.874]
[1617252191501,3.80381,1922.8,1922.4,4.874]
[1617252191701,3.80381,1922.8,1922.4,4.58]
[1617252192508,3.80381,1922.8,1922.4,4.874]
[1617252192706,3.80381,1922.8,1922.6,0.4]
[1617252192904,3.80381,1922.8,1922.6,8.966]
[1617252193743,0.81441026,1923.0,1922.6,8.966]
[1617252194547,0.81441026,1923.0,1922.7,1.2]
[1617252194945,7.80352,1922.9,1922.7,1.2]
[1617252196149,0.81441026,1923.0,1922.7,1.2]
[1617252196350,0.90033811,1923.1,1922.7,1.2]
[1617252196550,0.90033811,1923.1,1922.9,0.41]
[1617252196754,4.07082187,1923.2,1922.9,0.41]
[1617252197352,7.80306,1923.0,1922.8,0.28]
[1617252197954,7.80306,1923.0,1922.7,0.68]
[1617252200377,7.80306,1923.0,1922.7,0.28]
[1617252200580,7.80306,1923.0,1922.6,8.846]
[1617252200778,7.80306,1923.0,1922.6,0.28]
[1617252201400,6.80306,1923.0,1922.6,0.68]
[1617252205523,0.01822746,1922.8,1922.6,0.68]
[1617252205725,0.01822746,1922.8,1922.6,0.28]
[1617252206546,9.56263746,1923.1,1922.6,0.67]
[1617252207547,9.42263746,1923.1,1922.6,1.87]
[1617252207948,7.80341,1922.9,1922.6,0.67]
[1617252209196,7.80341,1922.9,1922.6,0.28]
[1617252210397,7.80341,1922.9,1922.6,0.68]
[1617252210596,7.80341,1922.9,1922.6,1.88]
[1617252211398,3.75368641,1923.2,1922.6,1.88]
[1617252211599,0.68286454,1923.2,1922.8,0.697]
[1617252212201,0.14,1923.2,1922.8,0.697]
[1617252212400,0.14,1923.2,1922.8,0.287]
[1617252212601,7.94206,1923.2,1922.8,0.287]
[1617252215424,8.33206,1923.2,1922.8,0.287]
[1617252216627,7.94206,1923.2,1922.8,0.287]
[1617252223302,7.94206,1923.2,1922.8,0.687]
[1617252224602,7.94206,1923.2,1922.8,0.287]
[1617252230581,7.94206,1923.2,1922.9,0.4]
[1617252231182,7.94206,1923.2,1922.8,0.287]
[1617252231383,7.94206,1923.2,1922.8,0.687]
[1617252231782,7.94206,1923.2,1922.8,0.287]
[1617252244003,8.32206,1923.2,1922.8,0.287]
[1617252245003,7.94206,1923.2,1922.8,0.287]
[1617252245405,8.09387885,1923.2,1922.8,0.287]
[1617252245830,0.53160665,1923.0,1922.8,0.287]
[1617252246031,0.53160665,1923.0,1922.2,0.09406894]
[1617252246032,0.59208433,1923.0,1922.2,0.09406894]
[1617252246230,0.59208433,1923.0,1922.1,1.2762927]
[1617252246231,0.15131495,1922.6,1922.1,1.2762927]
[1617252246433,0.15119711,1922.4,1922.1,1.2762927]
[1617252246630,0.15112511,1922.3,1922.1,1.2762927]
[1617252246830,5.16112511,1922.3,1922.1,1.2762927]
[1617252247032,0.15112511,1922.3,1922.1,1.2762927]
[1617252247431,16.80105672,1922.2,1922.1,1.2762927]
[1617252247630,23.30295308,1922.2,1922.1,1.2762927]
[1617252247835,28.31295308,1922.2,1922.1,1.2762927]
[1617252248457,32.38568998,1922.2,1922.1,1.2762927]
[1617252248658,32.63463326,1922.2,1922.1,1.2762927]
[1617252248858,34.17956407,1922.2,1922.1,1.2762927]
[1617252249658,32.63463326,1922.2,1922.1,1.2762927]
[1617252252099,32.77779939,1922.2,1922.1,1.2762927]
[1617252252501,33.18779939,1922.2,1922.1,1.2762927]
[1617252253105,33.39916429,1922.2,1922.1,1.2762927]
[1617252253502,33.18779939,1922.2,1922.1,1.2762927]
[1617252253916,33.18779939,1922.2,1922.1,0.36002589]
[1617252254316,36.7131025,1922.2,1922.1,0.36002589]
[1617252254519,36.7131025,1922.2,1921.1,14.8971]
[1617252254520,37.9131025,1922.2,1921.1,14.8971]
[1617252254719,37.9131025,1922.2,1921.2,0.357]
[1617252254720,0.41,1921.5,1921.2,0.357]
[1617252254919,6.4266,1921.5,1920.9,0.12420577]
[1617252255120,4.8366,1921.5,1921.0,0.329]
[1617252255518,4.8366,1921.5,1920.2,14.61036894]
[1617252255519,4.8366,1921.5,1920.3,1.2]
[1617252255726,0.14,1921.2,1920.8,0.484]
[1617252255919,0.14,1921.2,1920.8,0.434]
[1617252257137,7.81333,1921.0,1920.8,0.434]
[1617252257639,7.81333,1921.0,1920.9,0.16324636]
[1617252259860,14.06333,1921.0,1920.9,0.16324636]
[1617252260259,7.81333,1921.0,1920.9,0.16324636]
[1617252261885,16.01333,1921.0,1920.9,0.16324636]
[1617252262481,7.81333,1921.0,1920.9,0.16324636]
[1617252262883,13.56333,1921.0,1920.9,0.16324636]
[1617252263283,7.81333,1921.0,1920.9,0.16324636]
[1617252263883,22.33883301,1921.0,1920.9,0.16324636]
[1617252264112,27.34883301,1921.0,1920.9,0.16324636]
[1617252264515,27.34883301,1921.0,1920.4,0.483]
[1617252264516,0.14,1920.8,1920.4,0.483]
[1617252265519,7.81517,1920.6,1920.4,0.483]
[1617252266122,0.29403519,1920.5,1920.4,0.483]
[1617252267341,0.56573849,1920.5,1920.4,0.483]
[1617252268342,0.56573849,1920.5,1920.3,0.38]
[1617252268545,0.56573849,1920.5,1920.0,0.39]
[1617252268546,0.14,1920.4,1920.0,0.39]
[1617252268746,0.14,1920.4,1919.8,0.09406894]
[1617252268747,0.14,1920.4,1919.9,0.364]
[1617252268943,0.14,1920.4,1919.9,0.314]
[1617252269985,1.66396523,1920.4,1919.9,0.704]
[1617252270184,7.81699,1920.2,1919.9,0.39]
[1617252270382,7.81699,1920.2,1919.7,1.2]
[1617252270383,7.81699,1920.2,1919.7,0.41]
[1617252270583,7.81699,1920.2,1919.7,0.28]
[1617252271986,8.91525622,1920.2,1919.7,0.28]
[1617252272189,8.91525622,1920.2,1919.6,0.4]
[1617252272190,3.90876,1920.1,1919.6,0.4]
[1617252272389,14.38166,1920.1,1919.6,0.4]
[1617252272589,7.81867,1919.9,1919.5,0.28]
[1617252272989,7.81867,1919.9,1919.3,0.39]
[1617252273190,7.81867,1919.9,1919.3,0.726]
[1617252273389,7.95867,1919.9,1919.3,0.726]
[1617252273691,21.05909285,1919.9,1919.3,0.726]
[1617252273893,13.24042285,1919.9,1919.3,0.726]
[1617252274091,2.0853361,1919.6,1919.3,0.726]
[1617252274289,10.8227361,1919.6,1919.3,0.726]
[1617252274489,10.8227361,1919.6,1919.3,0.286]
[1617252274715,10.8227361,1919.6,1919.4,0.39]
[1617252274916,7.82002,1919.5,1919.4,0.39]
[1617252275316,7.82002,1919.5,1919.3,0.286]
[1617252277339,7.82002,1919.5,1919.2,2.4824408]
[1617252277340,7.82002,1919.5,1919.2,2.1024408]
[1617252279345,11.89826398,1919.5,1919.2,2.1024408]
[1617252280415,13.2897166,1919.5,1919.2,2.1024408]
[1617252280615,11.89826398,1919.5,1919.2,2.1024408]
[1617252281417,11.89826398,1919.5,1919.3,0.4]
[1617252282215,11.89826398,1919.5,1919.2,2.1024408]
[1617252282416,11.89826398,1919.5,1919.2,2.4824408]
[1617252283015,11.89826398,1919.5,1919.2,2.1024408]
[1617252284017,11.89826398,1919.5,1919.2,1.18524707]
[1617252288237,13.98366518,1919.5,1919.2,1.18524707]
[1617252288439,6.16364518,1919.5,1919.2,1.18524707]
[1617252288739,4.07824398,1919.5,1919.4,0.39]
[1617252289543,14.50548398,1919.5,1919.4,0.39]
[1617252289938,10.42724,1919.5,1919.4,0.39]
[1617252291359,10.42724,1919.5,1919.4,0.29]
[1617252291960,10.42724,1919.5,1919.4,0.41]
[1617252293383,10.42724,1919.5,1919.3,0.28]
[1617252293585,10.42724,1919.5,1919.3,0.4]
[1617252293784,10.42724,1919.5,1919.4,0.38]
[1617252309340,10.17489453,1919.7,1919.4,0.38]
[1617252309341,0.27191403,1919.7,1919.4,0.38]
[1617252309541,0.27191403,1919.7,1919.5,0.38]
[1617252309741,4.07789614,1919.8,1919.3,0.28]
[1617252309942,4.21789614,1919.8,1919.3,0.67]
[1617252310142,0.16336967,1919.5,1919.3,0.67]
[1617252310342,0.16336967,1919.5,1919.4,0.39]
[1617252310544,7.98147967,1919.5,1919.4,0.39]
[1617252317419,7.98147967,1919.5,1919.2,1.18524707]
[1617252317819,7.98147967,1919.5,1919.2,1.58524707]
[1617252318422,7.98147967,1919.5,1919.3,0.39]
[1617252318620,7.98147967,1919.5,1919.2,1.58524707]
[1617252319439,17.38757967,1919.5,1919.2,1.18524707]
[1617252321041,23.38235907,1919.5,1919.2,1.18524707]
[1617252321238,15.56424907,1919.5,1919.2,1.57524707]
[1617252321438,15.56424907,1919.5,1919.2,1.18524707]
[1617252321439,13.47910967,1919.5,1919.2,1.18524707]
[1617252321862,7.81906,1919.4,1919.2,1.18524707]
[1617252322263,23.83398356,1919.3,1919.2,1.18524707]
[1617252322462,30.99983997,1919.5,1919.2,1.18524707]
[1617252322664,16.05,1919.4,1918.8,0.4]
[1617252322864,7.25872997,1919.5,1918.8,0.757]
[1617252322865,7.82025,1919.1,1918.8,0.757]
[1617252323064,7.82025,1919.1,1918.7,0.41]
[1617252323265,7.82025,1919.1,1918.7,0.74556823]
[1617252323464,3.91048,1919.0,1918.7,0.35]
[1617252323667,5.9960678,1919.0,1918.7,0.35]
[1617252324064,7.8212,1918.9,1918.7,0.35]
[1617252324493,7.8212,1918.9,1918.2,1.2]
[1617252324695,7.8212,1918.9,1918.3,0.795]
[1617252324894,7.8212,1918.9,1918.4,1.2]
[1617252325495,0.14,1918.7,1918.2,0.28]
[1617252325695,7.5845,1918.7,1918.2,0.28]
[1617252325895,7.5845,1918.7,1918.2,0.18]
[1617252326524,7.82197,1918.4,1918.2,0.18]
[1617252327337,7.55824411,1918.4,1918.2,0.57]
[1617252327539,7.55824411,1918.4,1918.3,0.38]
[1617252327937,7.55824411,1918.4,1918.2,0.18]
[1617252328137,7.55824411,1918.4,1918.0,1.2]
[1617252328739,7.55824411,1918.4,1918.1,0.51530657]
[1617252329341,7.55824411,1918.4,1918.1,0.46530657]
[1617252330942,7.55824411,1918.4,1918.1,0.41530657]
[1617252333358,7.55824411,1918.4,1918.1,0.5323801]
[1617252333960,3.9118,1918.3,1918.1,0.5323801]
[1617252334162,11.73499,1918.3,1918.1,0.5323801]
[1617252334988,19.25069,1918.3,1918.1,0.5323801]
[1617252335587,19.25069,1918.3,1918.1,0.4823801]
[1617252335987,11.81348039,1918.2,1918.1,0.4823801]
[1617252339013,11.81348039,1918.2,1918.1,0.41530657]
[1617252339614,3.91251,1918.1,1917.5,2.00530657]
[1617252339815,3.91251,1918.1,1917.6,0.698]
[1617252339816,7.82501,1917.8,1917.6,0.698]
[1617252340838,7.82501,1917.8,1917.6,0.39]
[1617252341040,7.72501,1917.8,1917.6,0.39]
[1617252341245,7.72501,1917.8,1917.6,0.34]
[1617252341643,0.16352302,1917.7,1917.6,0.34]
[1617252343086,0.16352302,1917.7,1917.6,0.41530657]
[1617252343287,10.59716302,1917.7,1917.6,0.41530657]
[1617252343486,10.59716302,1917.7,1917.6,0.31530657]
[1617252345487,10.59716302,1917.7,1917.6,0.71530657]
[1617252346292,10.59716302,1917.7,1917.6,0.31530657]
[1617252346889,10.59716302,1917.7,1917.5,0.69530657]
[1617252347294,7.82523,1917.6,1917.5,0.69530657]
[1617252347891,7.82523,1917.6,1917.5,0.31530657]
[1617252347892,18.42523,1917.6,1917.5,0.31530657]
[1617252348511,7.82523,1917.6,1917.5,0.31530657]
[1617252348912,17.22523,1917.6,1917.5,0.31530657]
[1617252350311,7.82523,1917.6,1917.5,0.31530657]
[1617252351442,7.82523,1917.6,1917.2,0.31530657]
[1617252351640,11.73865,1917.6,1917.2,0.31530657]
[1617252351841,7.82684,1917.4,1917.2,0.31530657]
[1617252353042,11.82684,1917.4,1917.2,0.31530657]
[1617252356108,31.08137488,1917.3,1917.2,0.31530657]
[1617252356307,31.08137488,1917.3,1916.3,0.09406894]
[1617252356308,37.35627488,1917.3,1916.3,0.09406894]
[1617252356506,0.14,1917.1,1916.8,0.31530657]
[1617252357108,7.82854,1917.0,1916.8,0.31530657]
[1617252357907,8.77854,1917.0,1916.8,0.31530657]
[1617252358107,8.77854,1917.0,1916.8,0.21530657]
[1617252359546,8.77854,1917.0,1916.7,0.21530657]
[1617252359942,12.85927156,1917.0,1916.7,0.21530657]
[1617252362544,12.85927156,1917.0,1916.8,0.39]
[1617252362950,5.03073156,1917.0,1916.9,0.4]
[1617252363146,5.03073156,1917.0,1916.9,0.61530657]
[1617252363147,0.95,1917.0,1916.9,0.61530657]
[1617252364168,0.95,1917.0,1916.9,0.21530657]
[1617252364567,0.95,1917.0,1916.9,0.61530657]
[1617252364966,8.77708,1917.0,1916.9,0.61530657]
[1617252365967,8.77708,1917.0,1916.9,0.21530657]
[1617252366368,8.77708,1917.0,1916.7,0.21530657]
[1617252366799,8.77708,1917.0,1916.9,0.41]
[1617252367398,8.94067126,1917.0,1916.9,0.41]
[1617252369616,8.94067126,1917.0,1916.9,0.62530657]
[1617252370017,1.11359126,1917.0,1916.9,0.62530657]
[1617252370417,8.94087126,1917.0,1916.9,0.62530657]
[1617252372443,1.11359126,1917.0,1916.9,0.62530657]
[1617252374668,1.11359126,1917.0,1916.9,8.42530657]
[1617252374868,1.11359126,1917.0,1916.9,16.25076657]
[1617252375067,1.11359126,1917.0,1916.9,20.59076657]
[1617252375468,1.11359126,1917.0,1916.9,20.54076657]
[1617252376269,1.11359126,1917.0,1916.9,12.74076657]
[1617252378489,1.11359126,1917.0,1916.9,21.77286657]
[1617252380713,1.11359126,1917.0,1916.9,22.97286657]
[1617252381515,1.11359126,1917.0,1916.9,21.77286657]
[1617252382740,1.11359126,1917.0,1916.9,22.97286657]
[1617252384142,1.11359126,1917.0,1916.9,30.97286657]
[1617252384342,1.11359126,1917.0,1916.9,22.97286657]
[1617252385369,1.11359126,1917.0,1916.9,30.97286657]
[1617252387376,1.11359126,1917.0,1916.9,22.97286657]
[1617252387614,7.82366,1917.9,1916.9,30.97286657]
[1617252387817,8.15999319,1918.2,1917.8,0.39]
[1617252388015,4.62383115,1918.3,1917.8,8.6078]
[1617252388016,0.54391267,1918.3,1917.8,8.6078]
[1617252388217,1.41421508,1918.5,1917.8,8.6078]
[1617252388218,1.41421508,1918.5,1918.1,0.322]
[1617252388413,1.41421508,1918.5,1917.9,0.09406894]
[1617252388414,0.32635727,1918.5,1917.9,0.09406894]
[1617252388615,0.32635727,1918.5,1917.9,0.30937551]
[1617252388815,7.14782727,1918.5,1917.9,0.30937551]
[1617252389014,0.14,1918.4,1917.9,0.21530657]
[1617252390219,7.82282,1918.2,1917.9,0.21530657]
[1617252391720,6.82282,1918.2,1917.7,0.60530657]
[1617252391919,6.82282,1918.2,1917.7,0.88530657]
[1617252393544,6.82282,1918.2,1917.7,0.60530657]
[1617252393746,0.14,1918.3,1917.9,0.4]
[1617252393944,14.6226,1918.6,1918.0,0.694]
[1617252394144,14.7626,1918.6,1918.1,0.308]
[1617252394544,0.14,1918.6,1918.0,0.4]
[1617252394745,7.82191,1918.4,1917.8,7.91554894]
[1617252394946,0.14,1918.3,1917.9,0.39]
[1617252395144,0.14,1918.3,1918.2,0.21530657]
[1617252395372,5.44,1918.3,1918.2,0.21530657]
[1617252395973,13.2622,1918.3,1918.2,0.21530657]
[1617252396173,13.1222,1918.3,1918.2,0.21530657]
[1617252396772,9.42901,1918.7,1918.2,0.21530657]
[1617252396976,0.14,1918.6,1918.2,0.21530657]
[1617252397173,7.82193,1918.4,1918.2,0.21530657]